[Event "Titled Tuesday Blitz August 16 Early 2022"]
[White "Al-Tarboush, Ward"]
[Black "Grot, Blazej"]
[WhiteFideId "7601450"]
[BlackFideId "21835845"]
[WhiteElo "2234"]
[BlackElo "1614"]
[Result "1-0"]
[Round "05"]
[TimeControl "180+2"]
[Date "2022.08.18"]
[WhiteClock "0:00:00"]
[BlackClock "0:00:00"]

1. e4 {[%clk 0:00:00]}  c5 {[%clk 0:00:00]} 2. Nf3 {[%clk 0:00:00]}  e6 {[%clk 0:00:00]} 3. d4 {[%clk 0:00:00]}  cxd4 {[%clk 0:00:00]} 4. Nxd4 {[%clk 0:00:00]}  Nc6 {[%clk 0:00:00]} 5. Nc3 {[%clk 0:00:00]}  Qc7 {[%clk 0:00:00]} 6. Be3 {[%clk 0:00:00]}  a6 {[%clk 0:00:00]} 7. Qd2 {[%clk 0:00:00]}  Nf6 {[%clk 0:00:00]} 8. O-O-O {[%clk 0:00:00]}  d6 {[%clk 0:00:00]} 9. f3 {[%clk 0:00:00]}  Be7 {[%clk 0:00:00]} 10. g4 {[%clk 0:00:00]}  b5 {[%clk 0:00:00]} 11. h4 {[%clk 0:00:00]}  Bb7 {[%clk 0:00:00]} 12. h5 {[%clk 0:00:00]}  Ne5 {[%clk 0:00:00]} 13. g5 {[%clk 0:00:00]}  Nfd7 {[%clk 0:00:00]} 14. Be2 {[%clk 0:00:00]}  Nb6 {[%clk 0:00:00]} 15. g6 {[%clk 0:00:00]}  hxg6 {[%clk 0:00:00]} 16. hxg6 {[%clk 0:00:00]}  Nxg6 {[%clk 0:00:00]} 17. Rxh8+ {[%clk 0:00:00]}  Nxh8 {[%clk 0:00:00]} 18. f4 {[%clk 0:00:00]}  O-O-O {[%clk 0:00:00]} 19. f5 {[%clk 0:00:00]}  e5 {[%clk 0:00:00]} 20. Ndxb5 {[%clk 0:00:00]}  axb5 {[%clk 0:00:00]} 21. Nxb5 {[%clk 0:00:00]}  Nc4 {[%clk 0:00:00]} 22. Qc3 {[%clk 0:00:00]}  Qa5 {[%clk 0:00:00]} 23. Qxc4+ {[%clk 0:00:00]}  Kb8 {[%clk 0:00:00]} 24. b4 {[%clk 0:00:00]}  Qa4 {[%clk 0:00:00]} 25. Qc7+ {[%clk 0:00:00]}  Ka8 {[%clk 0:00:00]} 26. Qxe7 {[%clk 0:00:00]}  Rc8 {[%clk 0:00:00]} 27. Nc7+ {[%clk 0:00:00]}  Kb8 {[%clk 0:00:00]} 28. Qxd6 {[%clk 0:00:00]}  Rxc7 {[%clk 0:00:00]} 29. Bd3 {[%clk 0:00:00]}  Qc6 {[%clk 0:00:00]} 30. Qxe5 {[%clk 0:00:00]}  f6 {[%clk 0:00:00]} 31. Qa5 {[%clk 0:00:00]}  Nf7 {[%clk 0:00:00]} 32. Bb6 {[%clk 0:00:00]}  Rd7 {[%clk 0:00:00]} 33. Ba7+ {[%clk 0:00:00]}  Kc8 {[%clk 0:00:00]} 34. b5 {[%clk 0:00:00]}  Qd6 {[%clk 0:00:00]} 35. Qc3+ {[%clk 0:00:00]}  Rc7 {[%clk 0:00:00]} 36. Qb3 {[%clk 0:00:00]}  Ne5 {[%clk 0:00:00]} 37. Qg8+ {[%clk 0:00:00]}  Qd8 {[%clk 0:00:00]} 38. Qxd8+ {[%clk 0:00:00]}  Kxd8 {[%clk 0:00:00]} 39. Bb6 {[%clk 0:00:00]}  Kc8 {[%clk 0:00:00]} 40. Bxc7 {[%clk 0:00:00]}  Kxc7 {[%clk 0:00:00]} 41. Rg1 {[%clk 0:00:00]}  Kb6 {[%clk 0:00:00]} 42. Rxg7 {[%clk 0:00:00]} 1-0


[Site "https://www.chess.com"]

[Event "Titled Tuesday Blitz August 16 Early 2022"]
[White "Arslanov, Shamil"]
[Black "Matinian, Nikita"]
[WhiteFideId "4192826"]
[BlackFideId "24129100"]
[WhiteElo "2338"]
[BlackElo "2422"]
[Result "1-0"]
[Round "05"]
[TimeControl "180+2"]
[Date "2022.08.18"]
[WhiteClock "0:00:00"]
[BlackClock "0:00:00"]

1. e4 {[%clk 0:00:00]}  c5 {[%clk 0:00:00]} 2. Nc3 {[%clk 0:00:00]}  Nc6 {[%clk 0:00:00]} 3. f4 {[%clk 0:00:00]}  g6 {[%clk 0:00:00]} 4. Nf3 {[%clk 0:00:00]}  Bg7 {[%clk 0:00:00]} 5. Bc4 {[%clk 0:00:00]}  e6 {[%clk 0:00:00]} 6. f5 {[%clk 0:00:00]}  Nge7 {[%clk 0:00:00]} 7. fxe6 {[%clk 0:00:00]}  fxe6 {[%clk 0:00:00]} 8. d3 {[%clk 0:00:00]}  d5 {[%clk 0:00:00]} 9. Bb5 {[%clk 0:00:00]}  O-O {[%clk 0:00:00]} 10. Bxc6 {[%clk 0:00:00]}  Nxc6 {[%clk 0:00:00]} 11. O-O {[%clk 0:00:00]}  c4 {[%clk 0:00:00]} 12. Kh1 {[%clk 0:00:00]}  cxd3 {[%clk 0:00:00]} 13. cxd3 {[%clk 0:00:00]}  Bxc3 {[%clk 0:00:00]} 14. bxc3 {[%clk 0:00:00]}  dxe4 {[%clk 0:00:00]} 15. Ng5 {[%clk 0:00:00]}  Qxd3 {[%clk 0:00:00]} 16. Rxf8+ {[%clk 0:00:00]}  Kxf8 {[%clk 0:00:00]} 17. Qe1 {[%clk 0:00:00]}  e5 {[%clk 0:00:00]} 18. Ba3+ {[%clk 0:00:00]}  Kg7 {[%clk 0:00:00]} 19. Rd1 {[%clk 0:00:00]}  Qc4 {[%clk 0:00:00]} 20. Qh4 {[%clk 0:00:00]}  h5 {[%clk 0:00:00]} 21. Nxe4 {[%clk 0:00:00]}  Qf7 {[%clk 0:00:00]} 22. Nd6 {[%clk 0:00:00]}  Qf8 {[%clk 0:00:00]} 23. Qc4 {[%clk 0:00:00]}  Bf5 {[%clk 0:00:00]} 24. Rf1 {[%clk 0:00:00]}  Qg8 {[%clk 0:00:00]} 25. Qb5 {[%clk 0:00:00]}  Rb8 {[%clk 0:00:00]} 26. Nxf5+ {[%clk 0:00:00]}  gxf5 {[%clk 0:00:00]} 27. Rxf5 {[%clk 0:00:00]}  Qxa2 {[%clk 0:00:00]} 28. Rg5+ {[%clk 0:00:00]}  Kh6 {[%clk 0:00:00]} 29. Bc1 {[%clk 0:00:00]}  Rd8 {[%clk 0:00:00]} 30. Qf1 {[%clk 0:00:00]}  Kh7 {[%clk 0:00:00]} 31. Qf5+ {[%clk 0:00:00]} 1-0


[Site "https://www.chess.com"]

[Event "Titled Tuesday Blitz August 16 Early 2022"]
[White "Averjanov, Alexey"]
[Black "D`Arruda, Ricardo D."]
[WhiteFideId "14109867"]
[BlackFideId "100692"]
[WhiteElo "2399"]
[BlackElo "2271"]
[Result "0-1"]
[Round "05"]
[TimeControl "180+2"]
[Date "2022.08.18"]
[WhiteClock "0:00:00"]
[BlackClock "0:00:00"]

1. d4 {[%clk 0:00:00]}  Nf6 {[%clk 0:00:00]} 2. c4 {[%clk 0:00:00]}  e5 {[%clk 0:00:00]} 3. dxe5 {[%clk 0:00:00]}  Ne4 {[%clk 0:00:00]} 4. a3 {[%clk 0:00:00]}  Nc6 {[%clk 0:00:00]} 5. Nf3 {[%clk 0:00:00]}  d6 {[%clk 0:00:00]} 6. exd6 {[%clk 0:00:00]}  Bxd6 {[%clk 0:00:00]} 7. Nbd2 {[%clk 0:00:00]}  Bf5 {[%clk 0:00:00]} 8. Nxe4 {[%clk 0:00:00]}  Bxe4 {[%clk 0:00:00]} 9. e3 {[%clk 0:00:00]}  Qf6 {[%clk 0:00:00]} 10. Be2 {[%clk 0:00:00]}  O-O-O {[%clk 0:00:00]} 11. Qb3 {[%clk 0:00:00]}  Rhe8 {[%clk 0:00:00]} 12. Bd2 {[%clk 0:00:00]}  Qg6 {[%clk 0:00:00]} 13. O-O {[%clk 0:00:00]}  Qh6 {[%clk 0:00:00]} 14. h3 {[%clk 0:00:00]}  g5 {[%clk 0:00:00]} 15. Rfd1 {[%clk 0:00:00]}  f5 {[%clk 0:00:00]} 16. Ne1 {[%clk 0:00:00]}  g4 {[%clk 0:00:00]} 17. Bd3 {[%clk 0:00:00]}  gxh3 {[%clk 0:00:00]} 18. Bxe4 {[%clk 0:00:00]}  fxe4 {[%clk 0:00:00]} 19. g3 {[%clk 0:00:00]}  h2+ {[%clk 0:00:00]} 20. Kh1 {[%clk 0:00:00]}  Rf8 {[%clk 0:00:00]} 21. Ng2 {[%clk 0:00:00]}  Rxf2 {[%clk 0:00:00]} 22. Nf4 {[%clk 0:00:00]}  Bxf4 {[%clk 0:00:00]} 23. exf4 {[%clk 0:00:00]}  Qh3 {[%clk 0:00:00]} 24. Be3 {[%clk 0:00:00]}  Qg2# {[%clk 0:00:00]} 0-1


[Site "https://www.chess.com"]

[Event "Titled Tuesday Blitz August 16 Early 2022"]
[White "Barrientos, Sergio E"]
[Black "Reprintsev, Alexander"]
[WhiteFideId "4401824"]
[BlackFideId "14100541"]
[WhiteElo "2397"]
[BlackElo "2108"]
[Result "1-0"]
[Round "05"]
[TimeControl "180+2"]
[Date "2022.08.18"]
[WhiteClock "0:00:00"]
[BlackClock "0:00:00"]

1. d4 {[%clk 0:00:00]}  d5 {[%clk 0:00:00]} 2. c4 {[%clk 0:00:00]}  e5 {[%clk 0:00:00]} 3. Nf3 {[%clk 0:00:00]}  e4 {[%clk 0:00:00]} 4. Nfd2 {[%clk 0:00:00]}  c6 {[%clk 0:00:00]} 5. e3 {[%clk 0:00:00]}  Be6 {[%clk 0:00:00]} 6. Nc3 {[%clk 0:00:00]}  Nf6 {[%clk 0:00:00]} 7. a3 {[%clk 0:00:00]}  a6 {[%clk 0:00:00]} 8. b4 {[%clk 0:00:00]}  b5 {[%clk 0:00:00]} 9. cxb5 {[%clk 0:00:00]}  cxb5 {[%clk 0:00:00]} 10. Bb2 {[%clk 0:00:00]}  Nbd7 {[%clk 0:00:00]} 11. Qb3 {[%clk 0:00:00]}  Nb6 {[%clk 0:00:00]} 12. h3 {[%clk 0:00:00]}  Nc4 {[%clk 0:00:00]} 13. Be2 {[%clk 0:00:00]}  Bd6 {[%clk 0:00:00]} 14. a4 {[%clk 0:00:00]}  Rb8 {[%clk 0:00:00]} 15. axb5 {[%clk 0:00:00]}  axb5 {[%clk 0:00:00]} 16. Bc1 {[%clk 0:00:00]}  O-O {[%clk 0:00:00]} 17. O-O {[%clk 0:00:00]}  Bc7 {[%clk 0:00:00]} 18. Ra6 {[%clk 0:00:00]}  Bc8 {[%clk 0:00:00]} 19. Rxf6 {[%clk 0:00:00]}  gxf6 {[%clk 0:00:00]} 20. Re1 {[%clk 0:00:00]}  Qd6 {[%clk 0:00:00]} 21. Nf1 {[%clk 0:00:00]}  Bd7 {[%clk 0:00:00]} 22. g3 {[%clk 0:00:00]}  Bxh3 {[%clk 0:00:00]} 23. Nh2 {[%clk 0:00:00]}  Bd7 {[%clk 0:00:00]} 24. Bg4 {[%clk 0:00:00]}  f5 {[%clk 0:00:00]} 25. Bh3 {[%clk 0:00:00]}  h5 {[%clk 0:00:00]} 26. Ne2 {[%clk 0:00:00]}  h4 {[%clk 0:00:00]} 27. Nf4 {[%clk 0:00:00]}  hxg3 {[%clk 0:00:00]} 28. fxg3 {[%clk 0:00:00]}  Qh6 {[%clk 0:00:00]} 29. Kg2 {[%clk 0:00:00]}  Bxf4 {[%clk 0:00:00]} 30. exf4 {[%clk 0:00:00]}  Ra8 {[%clk 0:00:00]} 31. Nf1 {[%clk 0:00:00]}  Kg7 {[%clk 0:00:00]} 32. Ne3 {[%clk 0:00:00]}  Rh8 {[%clk 0:00:00]} 33. Rh1 {[%clk 0:00:00]}  Ra3 {[%clk 0:00:00]} 34. Bxa3 {[%clk 0:00:00]}  Be6 {[%clk 0:00:00]} 35. Bc1 {[%clk 0:00:00]}  Qh5 {[%clk 0:00:00]} 36. Qd1 {[%clk 0:00:00]}  Qg6 {[%clk 0:00:00]} 37. Kf2 {[%clk 0:00:00]}  Ra8 {[%clk 0:00:00]} 38. Bf1 {[%clk 0:00:00]}  Ra2+ {[%clk 0:00:00]} 39. Be2 {[%clk 0:00:00]}  Kf8 {[%clk 0:00:00]} 40. Nxc4 {[%clk 0:00:00]}  dxc4 {[%clk 0:00:00]} 41. Be3 {[%clk 0:00:00]}  Bd7 {[%clk 0:00:00]} 42. Qb1 {[%clk 0:00:00]}  Qa6 {[%clk 0:00:00]} 43. Rh8+ {[%clk 0:00:00]}  Ke7 {[%clk 0:00:00]} 44. Qh1 {[%clk 0:00:00]}  c3 {[%clk 0:00:00]} 45. Qh4+ {[%clk 0:00:00]}  Qf6 {[%clk 0:00:00]} 46. Qxf6+ {[%clk 0:00:00]}  Kxf6 {[%clk 0:00:00]} 47. d5 {[%clk 0:00:00]}  Ke7 {[%clk 0:00:00]} 48. Bc5+ {[%clk 0:00:00]}  Kf6 {[%clk 0:00:00]} 49. Bd4+ {[%clk 0:00:00]}  Ke7 {[%clk 0:00:00]} 50. Bxc3 {[%clk 0:00:00]}  Kd6 {[%clk 0:00:00]} 51. Rd8 {[%clk 0:00:00]}  Kc7 {[%clk 0:00:00]} 52. Rf8 {[%clk 0:00:00]}  Kd6 {[%clk 0:00:00]} 53. Rxf7 {[%clk 0:00:00]}  Bc8 {[%clk 0:00:00]} 54. Ke3 {[%clk 0:00:00]}  Kxd5 {[%clk 0:00:00]} 55. Rc7 {[%clk 0:00:00]}  Ba6 {[%clk 0:00:00]} 56. Rc5+ {[%clk 0:00:00]}  Ke6 {[%clk 0:00:00]} 57. Bxb5 {[%clk 0:00:00]}  Bxb5 {[%clk 0:00:00]} 58. Rxb5 {[%clk 0:00:00]}  Rg2 {[%clk 0:00:00]} 59. Re5+ {[%clk 0:00:00]}  Kd6 {[%clk 0:00:00]} 60. Rxf5 {[%clk 0:00:00]}  Rxg3+ {[%clk 0:00:00]} 61. Kd4 {[%clk 0:00:00]}  Rd3+ {[%clk 0:00:00]} 62. Kc4 {[%clk 0:00:00]}  Kc6 {[%clk 0:00:00]} 63. b5+ {[%clk 0:00:00]}  Kc7 {[%clk 0:00:00]} 64. Be5+ {[%clk 0:00:00]} 1-0


[Site "https://www.chess.com"]

[Event "Titled Tuesday Blitz August 16 Early 2022"]
[White "Bodnar, Nikolay"]
[Black "Matveeva, Olga"]
[WhiteFideId "14106469"]
[BlackFideId "24107018"]
[WhiteElo "2283"]
[BlackElo "2052"]
[Result "0-1"]
[Round "05"]
[TimeControl "180+2"]
[Date "2022.08.18"]
[WhiteClock "0:00:00"]
[BlackClock "0:00:00"]

1. c4 {[%clk 0:00:00]}  e6 {[%clk 0:00:00]} 2. g3 {[%clk 0:00:00]}  Nf6 {[%clk 0:00:00]} 3. Bg2 {[%clk 0:00:00]}  d5 {[%clk 0:00:00]} 4. Nf3 {[%clk 0:00:00]}  c5 {[%clk 0:00:00]} 5. cxd5 {[%clk 0:00:00]}  Nxd5 {[%clk 0:00:00]} 6. d4 {[%clk 0:00:00]}  cxd4 {[%clk 0:00:00]} 7. Nxd4 {[%clk 0:00:00]}  Bb4+ {[%clk 0:00:00]} 8. Bd2 {[%clk 0:00:00]}  Bxd2+ {[%clk 0:00:00]} 9. Qxd2 {[%clk 0:00:00]}  O-O {[%clk 0:00:00]} 10. O-O {[%clk 0:00:00]}  Nc6 {[%clk 0:00:00]} 11. Nxc6 {[%clk 0:00:00]}  bxc6 {[%clk 0:00:00]} 12. Rc1 {[%clk 0:00:00]}  Qb6 {[%clk 0:00:00]} 13. e4 {[%clk 0:00:00]}  Nf6 {[%clk 0:00:00]} 14. e5 {[%clk 0:00:00]}  Nd5 {[%clk 0:00:00]} 15. Nc3 {[%clk 0:00:00]}  Rb8 {[%clk 0:00:00]} 16. Na4 {[%clk 0:00:00]}  Qb4 {[%clk 0:00:00]} 17. Qc2 {[%clk 0:00:00]}  Bb7 {[%clk 0:00:00]} 18. a3 {[%clk 0:00:00]}  Qd4 {[%clk 0:00:00]} 19. Re1 {[%clk 0:00:00]}  Ba6 {[%clk 0:00:00]} 20. b4 {[%clk 0:00:00]}  Bb5 {[%clk 0:00:00]} 21. Nc5 {[%clk 0:00:00]}  Rfd8 {[%clk 0:00:00]} 22. Rad1 {[%clk 0:00:00]}  Qc4 {[%clk 0:00:00]} 23. Qb2 {[%clk 0:00:00]}  a5 {[%clk 0:00:00]} 24. Re4 {[%clk 0:00:00]}  Qc3 {[%clk 0:00:00]} 25. Qb1 {[%clk 0:00:00]}  axb4 {[%clk 0:00:00]} 26. axb4 {[%clk 0:00:00]}  Ra8 {[%clk 0:00:00]} 27. Rh4 {[%clk 0:00:00]}  g6 {[%clk 0:00:00]} 28. Qe4 {[%clk 0:00:00]}  Ra2 {[%clk 0:00:00]} 29. Qg4 {[%clk 0:00:00]}  Qc2 {[%clk 0:00:00]} 30. Qf3 {[%clk 0:00:00]}  Be2 {[%clk 0:00:00]} 31. Qf4 {[%clk 0:00:00]}  Qxd1+ {[%clk 0:00:00]} 0-1


[Site "https://www.chess.com"]

[Event "Titled Tuesday Blitz August 16 Early 2022"]
[White "Boros, Denes"]
[Black "Tasev, Dejan"]
[WhiteFideId "722340"]
[BlackFideId "936618"]
[WhiteElo "2464"]
[BlackElo "2253"]
[Result "1-0"]
[Round "05"]
[TimeControl "180+2"]
[Date "2022.08.18"]
[WhiteClock "0:00:00"]
[BlackClock "0:00:00"]

1. e4 {[%clk 0:00:00]}  c6 {[%clk 0:00:00]} 2. Nc3 {[%clk 0:00:00]}  d5 {[%clk 0:00:00]} 3. exd5 {[%clk 0:00:00]}  cxd5 {[%clk 0:00:00]} 4. d4 {[%clk 0:00:00]}  Nc6 {[%clk 0:00:00]} 5. Bf4 {[%clk 0:00:00]}  a6 {[%clk 0:00:00]} 6. Bg5 {[%clk 0:00:00]}  h6 {[%clk 0:00:00]} 7. Bh4 {[%clk 0:00:00]}  g5 {[%clk 0:00:00]} 8. Bg3 {[%clk 0:00:00]}  Bg7 {[%clk 0:00:00]} 9. Nf3 {[%clk 0:00:00]}  Bg4 {[%clk 0:00:00]} 10. Be2 {[%clk 0:00:00]}  Bxf3 {[%clk 0:00:00]} 11. Bxf3 {[%clk 0:00:00]}  e6 {[%clk 0:00:00]} 12. Ne2 {[%clk 0:00:00]}  h5 {[%clk 0:00:00]} 13. h3 {[%clk 0:00:00]}  Qb6 {[%clk 0:00:00]} 14. c4 {[%clk 0:00:00]}  Nge7 {[%clk 0:00:00]} 15. cxd5 {[%clk 0:00:00]}  exd5 {[%clk 0:00:00]} 16. O-O {[%clk 0:00:00]}  g4 {[%clk 0:00:00]} 17. hxg4 {[%clk 0:00:00]}  hxg4 {[%clk 0:00:00]} 18. Bxg4 {[%clk 0:00:00]}  Nxd4 {[%clk 0:00:00]} 19. Nxd4 {[%clk 0:00:00]}  Bxd4 {[%clk 0:00:00]} 20. Re1 {[%clk 0:00:00]}  Kf8 {[%clk 0:00:00]} 21. Rc1 {[%clk 0:00:00]}  Qh6 {[%clk 0:00:00]} 22. Bh3 {[%clk 0:00:00]}  Qg7 {[%clk 0:00:00]} 23. Qf3 {[%clk 0:00:00]}  Re8 {[%clk 0:00:00]} 24. Bd6 {[%clk 0:00:00]}  Qf6 {[%clk 0:00:00]} 25. Qxf6 {[%clk 0:00:00]}  Bxf6 {[%clk 0:00:00]} 26. Rc7 {[%clk 0:00:00]}  d4 {[%clk 0:00:00]} 27. Rxb7 {[%clk 0:00:00]}  d3 {[%clk 0:00:00]} 28. Rb3 {[%clk 0:00:00]}  Rd8 {[%clk 0:00:00]} 29. Rxd3 {[%clk 0:00:00]}  Rxd6 {[%clk 0:00:00]} 30. Rxd6 {[%clk 0:00:00]}  Kg7 {[%clk 0:00:00]} 31. b4 {[%clk 0:00:00]}  Rc8 {[%clk 0:00:00]} 32. Bxc8 {[%clk 0:00:00]} 1-0


[Site "https://www.chess.com"]

[Event "Titled Tuesday Blitz August 16 Early 2022"]
[White "Carrasco Miranda, Andres"]
[Black "Vysochin, Spartak"]
[WhiteFideId "3405990"]
[BlackFideId "14103516"]
[WhiteElo "2177"]
[BlackElo "2355"]
[Result "1-0"]
[Round "05"]
[TimeControl "180+2"]
[Date "2022.08.18"]
[WhiteClock "0:00:00"]
[BlackClock "0:00:00"]

1. d4 {[%clk 0:00:00]}  d5 {[%clk 0:00:00]} 2. c4 {[%clk 0:00:00]}  e6 {[%clk 0:00:00]} 3. Nf3 {[%clk 0:00:00]}  Nf6 {[%clk 0:00:00]} 4. g3 {[%clk 0:00:00]}  Be7 {[%clk 0:00:00]} 5. Bg2 {[%clk 0:00:00]}  O-O {[%clk 0:00:00]} 6. O-O {[%clk 0:00:00]}  b6 {[%clk 0:00:00]} 7. cxd5 {[%clk 0:00:00]}  exd5 {[%clk 0:00:00]} 8. Nc3 {[%clk 0:00:00]}  Bb7 {[%clk 0:00:00]} 9. Bf4 {[%clk 0:00:00]}  Nbd7 {[%clk 0:00:00]} 10. Ne5 {[%clk 0:00:00]}  Rc8 {[%clk 0:00:00]} 11. Qa4 {[%clk 0:00:00]}  a5 {[%clk 0:00:00]} 12. Rfd1 {[%clk 0:00:00]}  Nh5 {[%clk 0:00:00]} 13. Qxd7 {[%clk 0:00:00]}  Nxf4 {[%clk 0:00:00]} 14. gxf4 {[%clk 0:00:00]}  Qxd7 {[%clk 0:00:00]} 15. Nxd7 {[%clk 0:00:00]}  Rfd8 {[%clk 0:00:00]} 16. Ne5 {[%clk 0:00:00]}  Bf6 {[%clk 0:00:00]} 17. Rac1 {[%clk 0:00:00]}  c6 {[%clk 0:00:00]} 18. e3 {[%clk 0:00:00]}  Kf8 {[%clk 0:00:00]} 19. Na4 {[%clk 0:00:00]}  b5 {[%clk 0:00:00]} 20. Nc5 {[%clk 0:00:00]}  Ba8 {[%clk 0:00:00]} 21. Ncd7+ {[%clk 0:00:00]}  Ke7 {[%clk 0:00:00]} 22. Nxf6 {[%clk 0:00:00]}  gxf6 {[%clk 0:00:00]} 23. Nd3 {[%clk 0:00:00]}  Rg8 {[%clk 0:00:00]} 24. Kf1 {[%clk 0:00:00]}  h5 {[%clk 0:00:00]} 25. Rc3 {[%clk 0:00:00]}  Rc7 {[%clk 0:00:00]} 26. Bxd5 {[%clk 0:00:00]}  Rgc8 {[%clk 0:00:00]} 27. Bf3 {[%clk 0:00:00]}  c5 {[%clk 0:00:00]} 28. Bxa8 {[%clk 0:00:00]}  Rxa8 {[%clk 0:00:00]} 29. Rxc5 {[%clk 0:00:00]}  Rb7 {[%clk 0:00:00]} 30. Rdc1 {[%clk 0:00:00]}  Kd6 {[%clk 0:00:00]} 31. Rc6+ {[%clk 0:00:00]}  Kd7 {[%clk 0:00:00]} 32. Rxf6 {[%clk 0:00:00]} 1-0


[Site "https://www.chess.com"]

[Event "Titled Tuesday Blitz August 16 Early 2022"]
[White "Chen, Justin"]
[Black "Sarana, Alexey"]
[WhiteFideId "2098199"]
[BlackFideId "24133795"]
[WhiteElo "2289"]
[BlackElo "2666"]
[Result "0-1"]
[Round "05"]
[TimeControl "180+1"]
[Date "2022.08.16"]
[WhiteClock "0:00:01"]
[BlackClock "0:02:28"]

1. e4 {[%clk 0:02:58]}  c5 {[%clk 0:03:00]} 2. Nf3 {[%clk 0:02:56]}  d6 {[%clk 0:03:00]} 3. Bb5+ {[%clk 0:02:57]}  Bd7 {[%clk 0:03:00]} 4. Bxd7+ {[%clk 0:02:56]}  Nxd7 {[%clk 0:03:01]} 5. O-O {[%clk 0:02:56]}  e6 {[%clk 0:03:01]} 6. b3 {[%clk 0:02:56]}  Be7 {[%clk 0:03:01]} 7. Bb2 {[%clk 0:02:56]}  Bf6 {[%clk 0:03:02]} 8. Bxf6 {[%clk 0:02:47]}  Ngxf6 {[%clk 0:02:56]} 9. Qe2 {[%clk 0:02:40]}  Ne5 {[%clk 0:02:56]} 10. Nxe5 {[%clk 0:02:21]}  dxe5 {[%clk 0:02:56]} 11. Qb5+ {[%clk 0:02:22]}  Nd7 {[%clk 0:02:53]} 12. Qxb7 {[%clk 0:02:15]}  O-O {[%clk 0:02:54]} 13. Nc3 {[%clk 0:02:11]}  Nb6 {[%clk 0:02:52]} 14. Rad1 {[%clk 0:02:07]}  a6 {[%clk 0:02:48]} 15. a4 {[%clk 0:01:09]}  Qd6 {[%clk 0:02:43]} 16. a5 {[%clk 0:00:20]}  Nd7 {[%clk 0:02:41]} 17. Nb5 {[%clk 0:00:17]}  axb5 {[%clk 0:02:40]} 18. Qxb5 {[%clk 0:00:18]}  Rfb8 {[%clk 0:02:41]} 19. Qa4 {[%clk 0:00:16]}  Rb4 {[%clk 0:02:41]} 20. Qa3 {[%clk 0:00:14]}  Rxe4 {[%clk 0:02:41]} 21. d3 {[%clk 0:00:10]}  Rb4 {[%clk 0:02:41]} 22. Rfe1 {[%clk 0:00:08]}  Rb5 {[%clk 0:02:40]} 23. Ra1 {[%clk 0:00:08]}  Rbxa5 {[%clk 0:02:40]} 24. Qxa5 {[%clk 0:00:08]}  Rxa5 {[%clk 0:02:41]} 25. Rxa5 {[%clk 0:00:08]}  g6 {[%clk 0:02:41]} 26. h3 {[%clk 0:00:07]}  h5 {[%clk 0:02:41]} 27. Ra4 {[%clk 0:00:07]}  Nf6 {[%clk 0:02:41]} 28. Rb1 {[%clk 0:00:03]}  Nd5 {[%clk 0:02:41]} 29. Rc4 {[%clk 0:00:03]}  Nf4 {[%clk 0:02:39]} 30. Re1 {[%clk 0:00:03]}  Qd5 {[%clk 0:02:38]} 31. f3 {[%clk 0:00:02]}  h4 {[%clk 0:02:35]} 32. Ree4 {[%clk 0:00:02]}  Kg7 {[%clk 0:02:34]} 33. Kf2 {[%clk 0:00:02]}  g5 {[%clk 0:02:34]} 34. Re3 {[%clk 0:00:01]}  Kg6 {[%clk 0:02:33]} 35. Ree4 {[%clk 0:00:01]}  f6 {[%clk 0:02:33]} 36. Re1 {[%clk 0:00:02]}  Qb7 {[%clk 0:02:33]} 37. Ra4 {[%clk 0:00:02]}  Qb6 {[%clk 0:02:32]} 38. Kf1 {[%clk 0:00:01]}  Nd5 {[%clk 0:02:31]} 39. Rea1 {[%clk 0:00:02]}  Ne3+ {[%clk 0:02:31]} 40. Kg1 {[%clk 0:00:01]}  Nxc2 {[%clk 0:02:30]} 41. Ra6 {[%clk 0:00:01]}  Qxb3 {[%clk 0:02:30]} 42. R1a2 {[%clk 0:00:01]}  Ne3 {[%clk 0:02:28]} 0-1


[Site "https://www.chess.com"]

[Event "Titled Tuesday Blitz August 16 Early 2022"]
[White "Cruz Mendez, Jean Marco"]
[Black "Filippova, Margarita"]
[WhiteFideId "3526402"]
[BlackFideId "34199680"]
[WhiteElo "2064"]
[BlackElo "1734"]
[Result "1-0"]
[Round "05"]
[TimeControl "180+2"]
[Date "2022.08.18"]
[WhiteClock "0:00:00"]
[BlackClock "0:00:00"]

1. Nf3 {[%clk 0:00:00]}  Nf6 {[%clk 0:00:00]} 2. g3 {[%clk 0:00:00]}  d5 {[%clk 0:00:00]} 3. Bg2 {[%clk 0:00:00]}  e6 {[%clk 0:00:00]} 4. O-O {[%clk 0:00:00]}  Be7 {[%clk 0:00:00]} 5. d3 {[%clk 0:00:00]}  O-O {[%clk 0:00:00]} 6. Nbd2 {[%clk 0:00:00]}  b6 {[%clk 0:00:00]} 7. e4 {[%clk 0:00:00]}  dxe4 {[%clk 0:00:00]} 8. dxe4 {[%clk 0:00:00]}  Bb7 {[%clk 0:00:00]} 9. Qe2 {[%clk 0:00:00]}  Nbd7 {[%clk 0:00:00]} 10. e5 {[%clk 0:00:00]}  Nd5 {[%clk 0:00:00]} 11. a3 {[%clk 0:00:00]}  c5 {[%clk 0:00:00]} 12. c4 {[%clk 0:00:00]}  Nc7 {[%clk 0:00:00]} 13. Ne4 {[%clk 0:00:00]}  Ne8 {[%clk 0:00:00]} 14. Rd1 {[%clk 0:00:00]}  Qc7 {[%clk 0:00:00]} 15. Bf4 {[%clk 0:00:00]}  g6 {[%clk 0:00:00]} 16. h4 {[%clk 0:00:00]}  Ng7 {[%clk 0:00:00]} 17. Nf6+ {[%clk 0:00:00]}  Bxf6 {[%clk 0:00:00]} 18. exf6 {[%clk 0:00:00]}  e5 {[%clk 0:00:00]} 19. fxg7 {[%clk 0:00:00]}  Rfe8 {[%clk 0:00:00]} 20. Be3 {[%clk 0:00:00]}  e4 {[%clk 0:00:00]} 21. Nh2 {[%clk 0:00:00]}  Ne5 {[%clk 0:00:00]} 22. Ng4 {[%clk 0:00:00]}  Nf3+ {[%clk 0:00:00]} 23. Kh1 {[%clk 0:00:00]}  Kxg7 {[%clk 0:00:00]} 24. b4 {[%clk 0:00:00]}  cxb4 {[%clk 0:00:00]} 25. Qb2+ {[%clk 0:00:00]}  Kf8 {[%clk 0:00:00]} 26. Qh8+ {[%clk 0:00:00]}  Ke7 {[%clk 0:00:00]} 27. Qf6+ {[%clk 0:00:00]}  Kf8 {[%clk 0:00:00]} 28. Bh6+ {[%clk 0:00:00]} 1-0


[Site "https://www.chess.com"]